bitfinex/quotes_ETHUSD_20251010
["timestamp","ask_amount","ask_price","bid_price","bid_amount"]
[1760108415502,0.59824205,4290.0,4287.3,0.003]
[1760108415816,0.59824205,4289.7,4287.3,0.003]
[1760108416017,2.44819542,4289.6,4287.3,0.003]
[1760108416209,5.772,4289.5,4287.3,0.6366]
[1760108416530,6.27719542,4289.4,4287.4,1.92]
[1760108416730,0.59824205,4290.0,4287.5,0.6336]
[1760108416906,0.02334212,4290.2,4288.9,0.6336]
[1760108417120,3.798,4290.1,4287.1,12.57746422]
[1760108417305,0.59824205,4289.6,4287.3,1.26104642]
[1760108417503,0.59824205,4289.3,4287.3,0.003]
[1760108417832,4.33224824,4289.2,4287.3,0.003]
[1760108417995,0.59824205,4288.9,4287.3,0.003]
[1760108418201,4.64799818,4289.2,4287.3,0.003]
[1760108418202,0.0581,4287.4,4287.3,0.003]
[1760108418410,0.50524824,4287.4,4285.3,0.02333558]
[1760108418756,0.50524824,4288.4,4285.9,12.57746422]
[1760108418900,0.02334212,4288.3,4286.8,0.6336]
[1760108419101,1.10718869,4289.4,4287.6,0.6336]
[1760108419403,0.02334212,4289.8,4288.5,0.6336]
[1760108419612,0.02334212,4290.3,4289.3,12.57746422]
[1760108419846,0.60194045,4291.0,4289.3,1.25774642]
[1760108420046,0.02334212,4290.9,4288.6,2.3531]
[1760108420338,3.082,4290.8,4288.8,0.6336]
[1760108420496,0.02334212,4290.7,4289.5,2.33127007]
[1760108420701,0.02334212,4290.7,4289.6,0.6336]
[1760108420938,0.6024849,4291.3,4288.7,2.3317089]
[1760108420939,0.6024849,4290.9,4288.7,2.3317089]
[1760108421142,3.85134212,4290.8,4289.3,12.57746422]
[1760108421325,0.48198792,4290.7,4289.3,12.57746422]
[1760108421526,0.02334212,4290.6,4288.8,1.78958731]
[1760108421738,0.62582702,4290.6,4288.8,1.78958731]
[1760108421917,0.6024849,4290.4,4284.9,2.33377673]
[1760108422238,0.6024849,4288.3,4285.5,2.33339786]
[1760108422440,0.02334212,4288.2,4286.6,2.33281826]
[1760108422741,1.66534212,4288.2,4286.7,0.02332796]
[1760108423051,1.66534212,4288.2,4286.2,0.4331]
[1760108423256,1.66534212,4288.2,4284.5,2.3339746]
[1760108423257,0.6024849,4287.8,4283.7,0.00916048]
[1760108423406,0.6024849,4287.2,4284.2,0.02334158]
[1760108423602,0.02254212,4287.1,4285.6,2.33335633]
[1760108423832,0.02254212,4287.1,4284.9,12.57746422]
[1760108424016,0.02254212,4287.1,4285.7,12.57746422]
[1760108424217,0.02254212,4287.1,4285.8,1.25774642]
[1760108424404,0.02254212,4287.1,4285.1,0.4331]
[1760108424620,3.828,4287.0,4284.5,12.57746422]
[1760108424820,1.20601494,4286.9,4284.1,0.001]
[1760108425024,0.6024849,4286.3,4284.6,12.57746422]
[1760108425257,0.02254212,4286.5,4285.4,12.57746422]
[1760108425444,0.02254212,4286.9,4285.5,3.20108092]
[1760108425764,0.02254212,4287.9,4286.2,12.57746422]
[1760108425919,0.02254212,4287.8,4285.8,0.6336]
[1760108426121,0.02254212,4287.8,4285.5,1.25774642]
[1760108426430,0.95,4287.7,4285.7,0.6336]
[1760108426632,0.02254212,4287.6,4285.8,0.61447159]
[1760108426835,0.6024849,4287.0,4284.5,0.4331]
[1760108427022,0.6024849,4286.5,4284.3,12.57746422]
[1760108427222,0.6024849,4285.4,4284.1,0.001]
[1760108427460,0.6024849,4285.1,4284.1,0.001]
[1760108427670,3.85054212,4285.0,4284.1,0.24920606]
[1760108427822,0.48198792,4284.9,4284.1,0.24920606]
[1760108428020,0.02254212,4284.8,4284.1,0.24920606]
[1760108428225,0.02254212,4285.1,4284.1,0.24920606]
[1760108428420,0.02254212,4285.1,4284.1,0.001]
[1760108429364,0.116,4284.5,4284.1,0.001]
[1760108429521,0.62502702,4285.8,4284.1,0.001]
[1760108429522,0.02254212,4285.8,4285.2,2.33360866]
[1760108429723,0.02254212,4286.0,4285.3,12.57746422]
[1760108430022,0.02254212,4287.1,4285.4,0.02333504]
[1760108430225,0.02254212,4287.2,4286.2,12.57746422]
[1760108430462,0.6024849,4287.9,4285.5,3.62457993]
[1760108430646,0.02254212,4287.8,4286.2,12.57746422]
[1760108430849,3.84554212,4287.8,4286.7,2.33274771]
[1760108431159,0.8026313,4288.7,4286.3,2.33301448]
[1760108431160,0.02254212,4287.7,4286.3,0.4445]
[1760108431362,0.02254212,4288.2,4286.4,1.51740642]
[1760108431664,0.87354212,4288.2,4287.2,2.33252185]
[1760108431865,0.87354212,4288.2,4286.4,1.51740642]
[1760108432026,0.87354212,4288.2,4285.5,1.26007993]
[1760108432247,0.6024849,4287.3,4284.1,12.57846422]
[1760108432454,0.6024849,4286.7,4284.1,0.001]
[1760108432763,0.6024849,4286.3,4284.1,0.001]
[1760108433091,0.6024849,4285.7,4284.1,0.001]
[1760108433412,0.02254212,4285.6,4284.2,2.33415806]
[1760108433606,1.2954841,4286.6,4284.6,12.57746422]
[1760108433607,0.02254212,4285.9,4284.6,12.57746422]
[1760108433783,0.02254212,4286.5,4284.8,0.6336]
[1760108434095,0.02254212,4286.5,4284.5,0.6336]
[1760108434264,0.6024849,4286.4,4284.3,0.67595608]
[1760108434453,0.6024849,4286.0,4284.4,0.02334049]
[1760108434786,0.02254212,4285.9,4284.3,2.33409462]
[1760108435102,0.02254212,4285.9,4284.1,0.02434212]
[1760108435103,0.7014849,4285.8,4284.1,0.02434212]
[1760108435302,5.25554212,4285.7,4284.1,0.6346]
[1760108435453,1.943,4285.6,4284.1,0.6346]
[1760108435652,0.02254212,4285.5,4284.3,0.6336]
[1760108435855,1.943,4286.3,4284.6,0.6336]
[1760108436051,3.83754212,4286.2,4284.4,0.4445]
[1760108436355,3.83754212,4286.2,4284.1,0.2331]
[1760108436356,2.93571765,4285.9,4284.1,0.001]
[1760108436555,0.6024849,4285.4,4284.1,0.001]
[1760108436798,0.6024849,4285.0,4284.1,0.001]
[1760108436999,0.82517342,4285.3,4284.1,0.001]
[1760108437000,0.6024849,4284.4,4284.1,0.001]
[1760108437160,12.65717342,4284.3,4283.6,0.001]
[1760108437364,2.93535126,4284.1,4283.6,0.001]
[1760108437562,0.02254212,4284.1,4283.6,0.001]
[1760108437763,0.12054212,4284.1,4283.6,0.001]
[1760108437967,5.87754212,4284.1,4283.6,0.001]
[1760108438269,8.67117354,4284.1,4283.6,0.001]
[1760108438595,4.39296099,4284.1,4283.6,0.001]
[1760108438889,4.39296099,4284.1,4281.5,2.5664876]
[1760108438890,2.33448501,4283.6,4281.5,2.5664876]
[1760108439189,0.60036453,4283.4,4281.5,2.5664876]
[1760108439488,0.02254212,4283.3,4281.5,4.90210278]
[1760108439725,0.02254212,4283.3,4281.5,2.5664876]
[1760108440682,5.754,4283.2,4281.6,0.02335575]
[1760108441003,0.02254212,4283.1,4282.4,2.33508674]
[1760108441209,0.60036453,4285.6,4283.2,2.96825632]
[1760108441377,0.60036453,4285.6,4283.5,2.33452446]
[1760108441378,1.96654212,4285.6,4283.5,2.33452446]
[1760108441703,1.96654212,4285.6,4281.9,2.33536084]
[1760108441704,0.099,4285.5,4282.6,0.6336]
[1760108442000,0.02254212,4285.4,4284.0,0.6336]
[1760108442183,0.02254212,4285.4,4284.1,1.51310642]
[1760108442499,0.02254212,4285.4,4281.7,12.57746422]
[1760108442500,0.099,4285.3,4281.7,12.57746422]
[1760108442672,0.12154212,4285.2,4281.6,1.92]
[1760108442875,0.082,4285.1,4282.4,2.33513917]
[1760108443073,0.02254212,4285.0,4283.2,2.33467402]
[1760108443275,0.02254212,4285.0,4283.3,2.5536]
[1760108443489,0.021,4285.5,4283.5,0.6336]
[1760108443690,0.099,4286.8,4283.5,0.6336]
[1760108443691,0.02254212,4285.8,4284.7,2.5536]
[1760108443982,0.02254212,4287.1,4285.6,0.6336]
[1760108444180,1.944,4287.7,4286.3,0.6336]
[1760108444412,1.78,4288.8,4287.1,2.5536]
[1760108444727,1.78,4288.8,4286.4,4.5099296]
[1760108444728,1.78,4289.7,4287.2,1.95760642]
[1760108444884,1.78,4289.7,4286.4,4.0421]
[1760108444885,1.66254212,4289.6,4286.9,1.92]
[1760108445229,1.66254212,4289.6,4286.6,2.96642667]
[1760108445533,0.02174212,4289.6,4286.8,2.5536]
[1760108445686,0.099,4289.5,4286.9,0.6336]
[1760108445880,0.099,4289.5,4286.7,0.4445]
[1760108445881,0.02094212,4289.4,4286.7,0.4445]
[1760108446229,0.099,4289.3,4286.8,1.49419642]
[1760108446386,0.099,4289.3,4287.2,2.33250591]
[1760108446387,0.02094212,4289.2,4287.2,2.33250591]
[1760108446584,0.02094212,4289.2,4287.4,2.33241591]
[1760108446788,2.055,4289.1,4287.5,0.02332361]
[1760108447094,0.02094212,4289.0,4287.5,0.02332361]
[1760108447324,0.02094212,4289.0,4286.6,0.4445]
[1760108447325,0.099,4288.9,4281.4,0.99999999]
[1760108447524,0.002,4286.7,4284.5,13.02196422]
[1760108447737,0.002,4286.7,4285.3,12.57746422]
[1760108447937,0.002,4286.7,4284.8,2.33383121]
[1760108448139,0.02294212,4286.7,4284.8,2.33383121]
[1760108448340,0.02294212,4286.7,4284.9,0.46983312]
[1760108448526,0.02374212,4286.7,4284.3,12.57746422]
[1760108448724,0.025,4286.6,4284.4,0.48634049]
[1760108448954,0.02174212,4286.5,4284.5,1.92]
[1760108449157,0.02174212,4286.5,4285.2,1.92]
[1760108449457,0.002,4286.7,4286.2,2.33304845]
[1760108449655,0.116,4286.4,4286.3,0.23330485]
[1760108449858,0.002,4286.7,4286.4,0.6336]
[1760108450042,0.002,4286.7,4286.1,0.6336]
[1760108450244,0.002,4286.7,4286.6,2.96645121]
[1760108450420,0.002,4286.7,4286.6,5.00245121]
[1760108450622,0.002,4286.7,4286.6,5.46545121]
[1760108450820,1.943,4289.1,4287.6,0.6336]
[1760108451072,0.116,4288.2,4287.6,0.6336]
[1760108451257,6.074,4289.9,4287.3,2.383]
[1760108451258,0.116,4288.6,4287.3,2.383]
[1760108451464,0.1535,4290.5,4285.9,14.91069366]
[1760108451465,0.38,4288.5,4286.3,0.463]
[1760108451666,0.38,4288.5,4286.5,0.6336]
[1760108451667,2.323,4288.4,4286.5,0.6336]
[1760108451820,0.116,4286.9,4286.5,2.33289883]
[1760108452020,0.116,4286.9,4286.8,2.33274237]
[1760108452221,1.096,4288.3,4283.0,1.27253113]
[1760108452422,0.60036453,4288.1,4283.8,12.57846422]
[1760108452667,2.04074212,4288.2,4283.8,12.57846422]
[1760108452668,0.60036453,4287.9,4284.6,12.57746422]
[1760108452848,4.00974212,4287.8,4285.2,12.57746422]
[1760108453026,5.744,4287.7,4285.6,2.33334789]
[1760108453229,0.12074212,4287.6,4284.7,0.463]
[1760108453484,3.8,4287.5,4284.8,2.33383121]
[1760108453758,4.94974212,4287.4,4285.3,2.33351775]
[1760108453933,0.60036453,4288.5,4285.9,2.33322529]
[1760108454122,0.02174212,4288.4,4286.0,2.5536]
[1760108454322,0.16074212,4288.4,4286.4,0.6336]
[1760108454536,0.16074212,4288.4,4286.7,2.33275857]
[1760108454731,0.02174212,4288.4,4286.8,2.56599593]
[1760108454944,0.02174212,4289.1,4287.3,0.6336]
[1760108455181,0.263,4289.5,4287.5,0.6336]
[1760108455477,0.03674212,4289.4,4286.8,2.15327586]
[1760108455774,0.03674212,4289.4,4287.4,0.6336]
[1760108456096,0.03674212,4289.4,4286.8,0.69627586]
[1760108456097,0.099,4289.3,4286.8,0.23327586]
[1760108456274,0.12074212,4289.2,4285.9,2.33323222]
[1760108456495,0.099,4289.1,4284.7,0.463]
[1760108456782,0.60170453,4288.5,4284.7,12.57746422]
[1760108456947,0.12074212,4288.4,4284.5,12.57746422]
[1760108457141,9.867,4288.3,4284.6,2.383]
[1760108457336,0.60210575,4288.2,4285.4,2.33349283]
[1760108457533,0.60210575,4288.2,4284.7,2.33388568]
[1760108457746,0.60170453,4287.1,4284.7,0.02333885]
[1760108457969,1.20072906,4287.6,4283.9,12.57746422]
[1760108457970,2.22174212,4287.0,4284.1,0.4605]
[1760108458291,0.1757,4286.9,4283.4,2.33458198]
[1760108458434,0.60170453,4286.7,4283.1,0.4605]
[1760108458634,0.60170453,4286.2,4282.1,13.27006422]
[1760108458834,6.69644665,4286.1,4282.9,12.57746422]
[1760108459156,0.60170453,4285.0,4280.8,12.57746422]
[1760108459355,0.67174212,4284.9,4281.6,12.57746422]
[1760108459667,0.60170453,4284.4,4280.8,14.91346914]
[1760108459979,0.60170453,4284.1,4280.8,12.57746422]
[1760108460182,2.33437602,4283.8,4280.3,0.4605]
[1760108460369,2.33530277,4282.1,4282.0,0.42580144]
[1760108460573,2.33530277,4282.1,4280.0,2.0]
[1760108460771,14.54722816,4282.0,4280.0,2.0]
[1760108460948,0.63006742,4281.9,4280.0,2.0]
[1760108461144,11.92574212,4281.8,4280.0,2.0]
[1760108461453,2.33557548,4281.6,4280.0,2.0]
[1760108461653,4.25636864,4280.2,4280.0,2.0]
[1760108461854,6.92998109,4280.1,4280.0,2.0]
[1760108462056,8.22875255,4280.1,4280.0,2.0]
[1760108462497,9.96,4280.1,4280.0,0.29921279]
[1760108462787,8.118,4280.1,4280.0,0.29921279]
[1760108463099,3.786,4280.1,4280.0,0.29921279]
[1760108463299,3.80774212,4280.1,4280.0,0.29921279]
[1760108463501,5.75074212,4280.1,4280.0,0.29921279]
[1760108463787,5.828,4280.1,4280.0,0.29921279]
[1760108464100,1.92,4280.0,4279.6,1e-08]
[1760108464408,4.96691237,4279.7,4279.6,1e-08]
[1760108464642,2.33692859,4279.2,4275.5,14.50768222]
[1760108464928,0.02174212,4279.1,4276.5,0.4605]
[1760108465222,1.20072906,4280.9,4276.4,15.25480582]
[1760108465223,0.02174212,4279.6,4278.3,0.4605]
[1760108465429,0.4759636,4281.4,4278.3,0.4605]
[1760108465430,0.02174212,4280.5,4279.1,1.92]
[1760108465598,0.4759636,4281.3,4279.2,0.02336885]
[1760108465599,0.441,4280.4,4279.2,0.02336885]
[1760108465805,0.099,4281.8,4279.2,0.02336885]
[1760108465806,0.02174212,4280.6,4279.2,0.02336885]
[1760108465988,0.02174212,4280.9,4280.8,2.33601196]
[1760108466200,0.59608701,4283.3,4280.9,2.33595739]
[1760108466495,1.945,4284.0,4282.3,1.92]
[1760108466736,3.334,4283.9,4281.5,2.5536]
[1760108466897,3.334,4283.8,4281.8,2.33546639]
[1760108467085,3.334,4283.8,4281.9,0.80658221]
[1760108467282,3.433,4283.8,4281.2,1.92]
[1760108467486,3.4322,4283.8,4281.2,1.92]
[1760108467708,3.4322,4283.8,4281.1,3.788]
[1760108467709,12.19026033,4283.7,4281.3,0.02335739]
[1760108467923,11.714,4283.7,4279.6,4.25666697]
[1760108468093,0.099,4283.6,4281.3,2.33573242]
[1760108468285,0.099,4283.5,4281.4,0.23357324]
[1760108468483,0.099,4283.4,4279.0,2.6119146]
[1760108468683,0.099,4283.3,4279.7,2.33661237]
[1760108468923,8.13,4283.2,4279.9,2.33650318]
[1760108469087,0.099,4283.1,4279.3,0.97938835]
[1760108469284,0.099,4283.0,4279.5,1.92]
[1760108469599,1.985,4282.9,4279.9,2.5536]
[1760108469977,0.099,4283.0,4279.6,3.62443883]
[1760108469978,3.312,4282.8,4279.8,1.92]
[1760108470182,0.099,4282.7,4279.9,0.6336]
[1760108470321,0.099,4282.7,4279.0,2.6119146]
[1760108470322,1.92,4282.4,4279.0,2.6119146]
[1760108470520,0.59608701,4281.7,4279.0,2.6119146]
[1760108470766,9.6201,4281.6,4279.1,0.26119146]
[1760108470967,0.099,4281.5,4279.1,0.26119146]
[1760108471121,0.099,4282.3,4279.2,0.4605]
[1760108471326,0.59608701,4283.7,4279.2,0.4605]
[1760108471327,0.064,4282.8,4279.8,0.6336]
[1760108471523,0.064,4282.7,4279.9,0.4605]
[1760108471733,0.163,4282.7,4280.0,0.74020993]
[1760108471942,2.49798869,4282.7,4280.1,2.33635331]
[1760108472146,0.099,4282.6,4279.1,2.18119146]
[1760108472329,0.064,4282.7,4279.1,2.18119146]
[1760108472330,0.099,4282.5,4279.1,0.26119146]
[1760108472521,0.1168,4279.3,4279.2,2.33688539]
[1760108472925,0.917,4281.4,4279.2,0.48386885]
[1760108473124,0.917,4281.4,4279.5,0.6336]
[1760108473326,0.917,4281.4,4279.9,2.33648359]
[1760108473653,3.782,4281.3,4279.4,1.92]
[1760108473859,1.703,4282.0,4279.4,2.33677618]
[1760108474022,0.1501,4281.2,4276.9,0.4605]
[1760108474219,0.099,4281.1,4279.1,0.26119146]
[1760108474421,8.815,4281.0,4276.8,0.4605]
[1760108474617,0.099,4280.9,4278.0,8.3375365]
[1760108474923,0.099,4280.9,4279.0,2.6109146]
[1760108474924,0.59608701,4280.6,4279.0,2.6109146]
[1760108475137,0.0757,4279.1,4279.0,2.6109146]
[1760108475329,3.9557,4279.1,4279.0,2.6109146]
[1760108476259,8.21264001,4279.1,4279.0,2.57239328]
[1760108476463,8.21264001,4279.1,4278.8,0.003]
[1760108476464,2.97064924,4278.9,4278.8,0.003]
[1760108476670,3.44584307,4278.9,4278.8,0.003]
[1760108476836,2.33748626,4278.1,4278.0,6.0]
[1760108477037,9.964,4278.1,4278.0,6.0]
[1760108477336,14.22148626,4278.1,4278.0,6.0]
[1760108477849,2.33761789,4277.9,4277.6,0.003]
[1760108478050,22.62799377,4278.1,4277.6,0.003]
[1760108478051,0.6336,4277.8,4277.6,0.003]
[1760108478266,6.83730484,4277.7,4277.6,0.003]
[1760108478427,2.33822101,4276.8,4273.9,2.7427686]
[1760108478622,2.5536,4276.6,4273.9,2.7427686]
[1760108478827,0.6336,4275.5,4272.3,0.003]
[1760108479133,0.0511,4272.4,4271.4,2.81894234]
[1760108479337,2.34131722,4271.1,4271.0,0.091644]
[1760108479560,2.34131722,4271.1,4270.0,0.01175]
[1760108479561,2.97546553,4270.1,4270.0,0.01175]
[1760108479860,2.97546553,4270.1,4268.9,2.83537259]
[1760108479861,3.785,4270.1,4268.9,2.83537259]
[1760108480032,0.0779,4270.1,4268.9,2.83537259]
[1760108480233,0.0779,4270.0,4268.9,2.83537259]
[1760108480435,0.59398024,4272.7,4268.9,2.83537259]
[1760108480436,3.462,4270.2,4268.9,2.72557259]
[1760108480633,0.36722861,4272.2,4268.9,2.72557259]
[1760108480858,0.0511,4272.4,4269.0,0.27255726]
[1760108481058,6.085,4272.1,4269.0,0.27255726]
[1760108481446,1.92,4272.0,4269.0,0.27255726]
[1760108481647,6.085,4272.1,4269.1,2.34241409]
[1760108481838,6.086,4274.4,4269.2,0.02342359]
[1760108482037,7.89698024,4275.6,4269.3,0.6336]
[1760108482038,11.836,4274.3,4269.3,0.6336]
[1760108482239,2.33967384,4274.1,4269.0,0.27255726]
[1760108482440,4.26047971,4272.7,4269.0,0.27255726]
[1760108482640,0.59398024,4275.5,4269.1,1.17385412]
[1760108482842,2.33958316,4274.3,4269.2,1.61208505]
[1760108483056,0.59398024,4275.8,4269.4,2.34224949]
[1760108483230,15.588,4275.7,4269.7,2.34208492]
[1760108483437,0.6336,4275.3,4269.5,0.6863]
[1760108483650,15.588,4275.7,4269.8,11.63920208]
[1760108483651,0.32643567,4275.7,4269.8,11.63920208]
[1760108483961,11.853,4275.6,4272.4,2.34057234]
[1760108484163,8.035,4275.6,4271.2,1.574]
[1760108484338,3.819,4275.5,4270.8,0.4605]
[1760108484525,3.819,4275.5,4271.0,1.92]
[1760108484727,0.1222651,4276.4,4271.5,2.97469797]
[1760108484728,8.036,4276.1,4271.5,2.97469797]
[1760108484979,3.817,4275.4,4272.1,0.6336]
[1760108485281,0.36681879,4278.3,4272.7,1.92]
[1760108485437,0.36681879,4278.3,4272.2,0.6863]
[1760108485438,2.33820302,4276.8,4272.1,0.6336]
[1760108485638,2.838,4276.7,4272.5,1.92]
[1760108485903,9.366,4276.6,4272.9,0.6336]
[1760108486189,2.33715848,4278.7,4273.1,0.6336]
[1760108486380,2.33744515,4278.2,4273.4,0.6336]
[1760108486541,17.636,4278.6,4273.7,0.6336]
[1760108486741,17.636,4278.6,4273.9,0.6336]
[1760108486966,17.636,4278.6,4274.5,1.92]
[1760108487169,17.636,4278.6,4275.7,2.33877967]
[1760108487487,0.59398024,4280.0,4275.8,0.02338743]
[1760108487673,18.356,4279.9,4275.1,0.6336]
[1760108487872,1.92,4279.7,4274.6,0.42595096]
[1760108488182,0.59398024,4277.8,4272.9,0.6336]
[1760108488387,0.6336,4276.5,4270.4,0.2258]
[1760108488548,0.59398024,4276.1,4271.2,2.3412624]
[1760108488745,0.59398024,4275.9,4271.4,2.34115278]
[1760108488949,0.6336,4275.6,4270.4,0.2258]
[1760108489185,2.33937253,4274.7,4269.9,1.84587021]
[1760108489385,2.33896127,4275.5,4270.4,2.34170101]
[1760108489583,2.93269361,4275.9,4270.5,1.0440701]
[1760108489584,0.6336,4275.3,4270.5,1.0440701]
[1760108489885,0.6336,4275.0,4270.5,0.4484]
[1760108490084,0.6336,4275.2,4270.6,0.02341591]
[1760108490290,0.6336,4275.2,4270.1,0.2265]
[1760108490450,0.6336,4274.5,4270.2,2.34181068]
[1760108490649,3.832,4274.4,4269.8,0.4484]
[1760108490886,0.59398024,4275.2,4269.9,0.02341975]
[1760108491097,17.145,4275.1,4270.0,0.4718192]
[1760108491254,0.6336,4274.9,4270.2,0.6336]
[1760108491453,0.6336,4274.6,4270.0,0.4484]
[1760108491654,0.6336,4274.6,4269.0,0.001]
[1760108491862,1.92,4274.3,4269.1,0.72105726]
[1760108492063,0.4727406,4274.7,4269.3,1.92]
[1760108492290,6.09,4275.9,4270.2,1.92]
[1760108492518,2.33885302,4275.6,4269.1,0.27265726]
[1760108492727,0.59398024,4275.2,4269.2,0.4484]
[1760108492876,2.33966996,4274.2,4271.3,2.34120159]
[1760108493076,4.259236,4274.9,4269.4,1.92]
[1760108493077,2.332,4274.1,4269.4,1.92]
[1760108493282,1.92,4273.9,4269.3,0.45510573]
[1760108493481,1.92,4273.7,4269.2,0.4484]
[1760108493714,0.59398024,4274.6,4269.2,0.4484]
[1760108493715,19.205,4273.6,4269.2,0.4484]
[1760108493911,19.205,4273.5,4269.5,2.34218837]
[1760108494115,19.205,4273.5,4269.1,0.27265726]
[1760108494116,2.34011185,4273.3,4269.1,0.27265726]
[1760108494323,1.92,4273.0,4269.0,0.001]
[1760108494623,0.47229592,4273.0,4269.0,0.001]
[1760108494785,2.34074354,4272.2,4269.0,0.001]
[1760108494987,9.668,4272.1,4269.2,2.34235026]
[1760108495186,11.899,4272.0,4269.0,1.921]
[1760108495497,7.31,4273.3,4269.3,1.92]
[1760108495498,1.92,4273.2,4269.3,1.92]
[1760108495694,3.13884577,4274.6,4269.4,3.88242249]
[1760108495695,0.59398024,4274.6,4269.4,3.88242249]
[1760108496010,2.33951162,4274.4,4271.4,2.34114752]
[1760108496242,2.33951162,4274.4,4271.2,1.92]
[1760108496243,7.31,4276.2,4271.5,0.4484]
[1760108496536,0.36688278,4275.8,4271.2,4.2612624]
[1760108496695,0.36688278,4275.8,4272.2,2.34067463]
[1760108496897,0.79939316,4276.6,4273.1,2.34020497]
[1760108496898,2.33862571,4276.1,4273.1,2.34020497]
[1760108497113,6.092,4276.1,4273.8,2.33983205]
[1760108497439,6.092,4276.1,4271.9,2.56734554]
[1760108497440,2.33819495,4276.9,4274.1,2.33966799]
[1760108497616,8.041,4276.8,4274.2,0.02339619]
[1760108497784,0.36670116,4278.4,4272.7,1.621]
[1760108497785,1.62,4276.9,4275.0,2.33913545]
[1760108497986,3.856,4276.8,4273.8,0.4484]
[1760108498241,3.856,4276.8,4273.1,3.2725]
[1760108498242,1.672,4276.7,4273.1,0.2265]
[1760108498604,1.672,4276.7,4272.6,0.4484]
[1760108498920,1.92,4276.8,4272.1,0.6336]
[1760108499100,1.92,4276.5,4272.7,1.92]
[1760108499309,1.92,4276.3,4272.8,0.384]
[1760108499621,1.92,4275.9,4271.3,0.87452624]
[1760108499920,1.22758024,4275.8,4269.2,11.63920208]
[1760108500152,1.22758024,4275.8,4268.2,0.2265]
[1760108500153,2.33984693,4273.8,4270.3,0.6749]
[1760108500457,0.949,4273.7,4271.4,2.34112734]
[1760108500623,0.47429568,4274.4,4270.3,0.4484]
[1760108500829,1.92,4274.6,4270.4,2.34170101]
[1760108501134,0.6336,4273.8,4270.5,0.3016601]
[1760108501447,0.59398024,4273.9,4269.0,0.001]
[1760108501448,0.59398024,4272.3,4269.0,0.001]
[1760108501675,0.6336,4272.0,4269.0,0.001]
[1760108501818,0.59398024,4271.6,4269.0,0.001]
[1760108502012,1.149,4271.5,4269.0,0.001]
[1760108502362,1.949,4271.4,4269.2,0.55337404]
[1760108502960,5.796,4271.3,4269.0,2.36687891]
[1760108503157,5.797,4271.2,4269.0,0.001]
[1760108503314,4.3263945,4271.1,4269.0,0.001]
[1760108503515,4.3253945,4271.0,4269.0,0.001]
[1760108503717,0.59398024,4272.0,4269.0,1.921]
[1760108503968,0.59398024,4271.9,4269.2,2.34235922]
[1760108504266,0.47745597,4272.6,4269.6,0.6336]
[1760108504461,0.59398024,4273.7,4270.4,2.34169081]
[1760108504749,1.20072906,4274.2,4270.6,0.6336]
[1760108504750,0.59398024,4273.9,4270.6,0.6336]
[1760108504969,1.07255728,4274.6,4271.4,0.6336]
[1760108505179,1.949,4274.7,4273.7,2.3398827]
[1760108505320,3.845,4274.9,4271.6,0.4484]
[1760108505680,0.59398024,4274.5,4271.6,0.4484]
[1760108505828,0.59398024,4274.3,4271.8,2.34093148]
[1760108506166,0.59398024,4273.9,4272.2,2.34069525]
[1760108506474,0.59398024,4274.2,4271.7,0.6336]
[1760108506632,0.59398024,4274.6,4272.1,0.6336]
[1760108506960,1.288,4274.6,4272.6,0.6336]
[1760108507175,1.88198024,4274.6,4271.8,0.25536]
[1760108507334,0.59398024,4273.9,4270.4,0.4484]
[1760108507560,0.59398024,4273.6,4270.8,0.6336]
[1760108507743,0.59398024,4273.3,4270.3,0.175]
[1760108507945,0.59398024,4273.0,4270.4,0.02341701]
[1760108508175,0.59398024,4273.0,4271.7,2.34096759]
[1760108508374,11.891,4273.5,4271.7,0.23409676]
[1760108508375,1.07349462,4273.2,4271.7,0.23409676]
[1760108508580,1.07349462,4273.4,4271.7,0.23409676]
[1760108508756,1.897,4273.3,4271.0,0.4484]
[1760108509067,3.392,4273.2,4270.5,0.6336]
[1760108509241,0.47951438,4273.1,4270.6,0.02341591]
[1760108509455,0.59398024,4272.6,4269.9,2.34197522]
[1760108509641,0.47951438,4273.1,4270.0,3.34431356]
[1760108509841,0.47951438,4273.1,4270.4,0.6336]
[1760108510106,0.47951438,4273.8,4271.5,1.92]
[1760108510240,0.47951438,4274.1,4271.8,0.6336]
[1760108510447,0.47951438,4274.4,4272.1,0.6336]
[1760108510742,0.59398024,4274.2,4271.9,0.4574]
[1760108510942,0.47951438,4274.1,4272.2,2.34071438]
[1760108511145,0.79939316,4274.6,4272.5,2.5536]
[1760108511146,0.47951438,4274.3,4272.5,2.5536]
[1760108511373,0.47951438,4275.1,4272.9,2.5536]
[1760108511576,0.80139316,4275.6,4273.9,0.6336]
[1760108511577,0.0012,4275.6,4273.9,0.6336]
[1760108511802,0.0012,4275.6,4273.6,1.92]
[1760108511803,0.0012,4275.6,4273.6,0.6336]
[1760108512029,0.47951438,4275.5,4273.0,0.4574]
[1760108512176,0.59398024,4274.5,4272.0,2.34082397]
[1760108512373,0.59398024,4274.2,4272.1,0.6648224]
[1760108512620,0.59398024,4273.1,4271.3,0.02341207]
[1760108512770,1.07349462,4273.0,4271.0,2.34133329]
[1760108512978,0.79939316,4273.3,4270.5,1.94341646]
[1760108512979,0.47951438,4272.9,4270.7,0.4574]
[1760108513324,0.48193819,4273.1,4270.7,0.4574]
[1760108513472,0.1168,4271.8,4271.7,2.34098836]
[1760108513675,2.139,4272.5,4269.8,0.4574]
[1760108513878,0.59398024,4272.2,4269.8,0.4574]
[1760108514092,0.59398024,4271.9,4270.0,0.0264192]
[1760108514293,0.48193819,4271.8,4270.0,0.003]
[1760108514580,0.59398024,4271.1,4270.0,0.003]
[1760108514891,0.59398024,4270.5,4270.0,0.003]
[1760108515211,1.20072906,4271.1,4270.0,0.003]
[1760108515212,0.59398024,4270.3,4270.0,0.003]
[1760108515370,0.48193819,4270.2,4270.0,0.003]
[1760108515576,3.846,4270.7,4270.0,0.003]
[1760108515818,0.48193819,4270.6,4270.0,0.003]